bitfinex/quotes_SOLUSD_20250204
["timestamp","ask_amount","ask_price","bid_price","bid_amount"]
[1738704930336,41.89969605,204.97,204.94,0.063]
[1738704930503,0.09364732,204.98,204.96,13.41184853]
[1738704930698,0.09364732,204.98,204.94,0.063]
[1738704930901,0.09364732,204.98,204.94,13.97680853]
[1738704931133,0.09364732,204.98,204.94,13.47484853]
[1738704931498,37.02099605,204.97,204.94,0.063]
[1738704931925,0.09364732,204.98,204.94,0.063]
[1738704932919,37.02099605,204.97,204.94,0.063]
[1738704933107,37.02099605,204.97,204.95,312.0]
[1738704933540,20.50196,204.95,204.94,0.0001]
[1738704933704,20.99994752,204.92,204.88,0.063]
[1738704933905,37.02099605,204.89,204.88,0.063]
[1738704934517,37.02099605,204.89,204.82,0.063]
[1738704934518,20.0,204.86,204.82,0.063]
[1738704934738,38.02094357,204.85,204.82,0.063]
[1738704935037,20.0,204.83,204.82,0.063]
[1738704935341,57.02099605,204.83,204.79,0.063]
[1738704935506,37.02099605,204.8,204.79,0.063]
[1738704936105,37.14648605,204.8,204.79,0.063]
[1738704936311,37.14648605,204.8,204.74,0.063]
[1738704936312,20.0,204.77,204.74,0.063]
[1738704936544,37.02099605,204.75,204.74,0.063]
[1738704937333,37.02099605,204.79,204.74,0.063]
[1738704937838,37.02099605,204.81,204.74,0.063]
[1738704938034,37.02099605,204.81,204.75,0.12549]
[1738704938344,37.02099605,204.83,204.75,5.26037]
[1738704938517,37.02099605,204.83,204.76,13.91380853]
[1738704938943,37.02099605,204.83,204.82,0.063]
[1738704940339,37.02099605,204.85,204.82,312.063]
[1738704940522,37.02099605,204.83,204.82,312.063]
[1738704940835,37.02099605,204.85,204.82,312.063]
[1738704941039,37.02099605,204.85,204.82,0.063]
[1738704941739,37.02099605,204.89,204.82,4.9452]
[1738704941919,37.02099605,204.93,204.86,13.41184853]
[1738704942114,37.02099605,204.97,204.87,37.52295605]
[1738704942320,37.02099605,204.97,204.89,37.52295605]
[1738704942533,0.09364732,204.98,204.91,13.78831853]
[1738704942737,0.09364732,204.98,204.92,0.12549]
[1738704942941,37.02099605,204.97,204.91,13.78831853]
[1738704943235,37.02099605,204.93,204.83,4.8818]
[1738704943438,37.02099605,204.9,204.8,0.73216598]
[1738704943641,37.02099605,204.9,204.82,13.97680853]
[1738704944335,37.02099605,204.94,204.86,13.91380853]
[1738704944636,37.02099605,204.96,204.89,13.41184853]
[1738704944944,37.02099605,204.92,204.82,37.08399605]
[1738704945238,37.02099605,204.9,204.83,13.91380853]
[1738704945747,37.02099605,204.91,204.86,13.41184853]
[1738704946262,37.02099605,204.89,204.82,20.063]
[1738704946625,37.02099605,204.89,204.83,13.91380853]
[1738704946828,37.02099605,204.87,204.82,0.063]
[1738704947043,4.8807,204.89,204.86,312.0]
[1738704947232,20.0,204.87,204.86,312.0]
[1738704947546,20.0,204.87,204.82,0.063]
[1738704947944,4.8807,204.89,204.82,0.063]
[1738704947945,37.02099605,204.83,204.82,0.063]
[1738704948643,41.90299605,204.83,204.82,0.063]
[1738704949832,42.02848605,204.83,204.82,0.0001]
[1738704950145,41.90299605,204.83,204.82,0.0001]
[1738704950852,37.02099605,204.83,204.82,0.0001]
[1738704951840,20.12549,204.8,204.74,0.063]
[1738704952156,37.02099605,204.75,204.74,0.063]
[1738704952457,37.02099605,204.77,204.74,0.063]
[1738704952769,37.02099605,204.75,204.74,0.063]
[1738704953256,37.14648605,204.75,204.74,0.063]
[1738704953465,1.0,204.73,204.69,0.063]
[1738704953631,74.1674821,204.7,204.69,0.063]
[1738704953827,74.1674821,204.7,204.69,0.0001]
[1738704953828,75.5439521,204.7,204.69,0.0001]
[1738704954350,74.1674821,204.7,204.69,0.0001]
[1738704954849,79.4290521,204.7,204.69,0.0001]
[1738704955044,80.4290521,204.7,204.69,0.0001]
[1738704955358,79.4290521,204.7,204.69,0.0001]
[1738704956152,1.12543752,204.66,204.63,0.063]
[1738704956359,37.52295605,204.64,204.58,0.063]
[1738704956543,37.02099605,204.59,204.58,0.063]
[1738704956739,37.02099605,204.6,204.58,0.063]
[1738704957554,41.90859605,204.6,204.58,0.063]
[1738704958736,0.12549,204.59,204.58,0.063]
[1738704958926,0.12549,204.59,204.58,312.063]
[1738704959449,0.12549,204.59,204.58,0.063]
[1738704959643,20.0,204.57,204.55,0.063]
[1738704959833,37.02099605,204.56,204.55,0.063]
[1738704960756,1.5451,204.6,204.55,0.063]
[1738704960757,37.02099605,204.6,204.55,0.063]
[1738704960957,37.02099605,204.64,204.55,0.063]
[1738704961136,37.02099605,204.68,204.61,13.53733853]
[1738704961348,37.02099605,204.66,204.61,13.41184853]
[1738704961647,37.02099605,204.76,204.67,13.78831853]
[1738704961839,37.02099605,204.8,204.72,13.41184853]
[1738704962031,37.02099605,204.84,204.75,0.37647]
[1738704962230,0.09823098,204.87,204.83,312.0]
[1738704962547,37.02099605,204.84,204.69,38.02099605]
[1738704962854,37.02099605,204.85,204.78,13.78831853]
[1738704963024,0.09823098,204.87,204.78,13.41184853]
[1738704963025,37.02099605,204.83,204.78,13.41184853]
[1738704963229,37.02099605,204.83,204.75,37.02099605]
[1738704963438,37.02099605,204.83,204.76,13.91380853]
[1738704963639,37.02099605,204.85,204.79,0.37647]
[1738704963828,0.09823098,204.87,204.73,37.02099605]
[1738704963829,37.02099605,204.81,204.73,37.02099605]
[1738704964041,37.02099605,204.85,204.76,37.02099605]
[1738704964234,0.09823098,204.87,204.77,37.75323917]
[1738704964235,37.02099605,204.86,204.77,37.75323917]
[1738704964744,37.02099605,204.8,204.72,0.73227726]
[1738704964951,37.02099605,204.76,204.68,4.8856]
[1738704965128,4.8824,204.82,204.71,0.37647]
[1738704965129,37.02099605,204.78,204.71,0.37647]
[1738704965335,37.02099605,204.84,204.75,37.39746605]
[1738704965548,37.02099605,204.86,204.82,312.0]
[1738704965733,37.02099605,204.84,204.82,312.0]
[1738704966650,20.0,204.8,204.66,4.886]
[1738704966956,37.02099605,204.72,204.64,11.3026]
[1738704967164,37.02099605,204.72,204.64,6.4162]
[1738704967371,37.02099605,204.72,204.65,13.41184853]
[1738704967537,37.02099605,204.74,204.69,13.66282853]
[1738704967729,37.02099605,204.76,204.69,13.66282853]
[1738704967936,37.02099605,204.72,204.69,13.41184853]
[1738704968263,0.09192147,204.66,204.61,0.063]
[1738704968437,0.09192147,204.66,204.61,13.60033853]
[1738704968643,0.09192147,204.66,204.61,0.063]
[1738704968846,37.02099605,204.62,204.61,0.063]
[1738704969046,37.02099605,204.64,204.61,0.063]
[1738704969359,0.09192147,204.66,204.63,13.78831853]
[1738704969545,0.09192147,204.66,204.65,312.0]
[1738704969739,0.09192147,204.66,204.61,0.063]
[1738704970058,37.11291752,204.66,204.61,0.063]
[1738704970441,37.02099605,204.64,204.61,0.063]
[1738704970634,37.11291752,204.66,204.61,0.063]
[1738704972059,0.09192147,204.66,204.62,13.78831853]
[1738704972236,0.09192147,204.66,204.65,13.41184853]
[1738704972559,0.09192147,204.66,204.65,13.78831853]
[1738704972773,0.09192147,204.66,204.65,325.78831853]
[1738704972933,0.09192147,204.66,204.65,312.0]
[1738704973354,0.09192147,204.66,204.65,362.80931458]
[1738704973739,2.147e-05,204.66,204.65,367.82110458]
[1738704973970,0.09800483,204.68,204.66,15.78831853]
[1738704973971,3.458e-05,204.68,204.66,15.78831853]
[1738704974155,3.458e-05,204.68,204.65,353.90729605]
[1738704974462,3.458e-05,204.68,204.61,0.063]
[1738704974649,3.458e-05,204.68,204.61,4.9503]
[1738704974964,3.458e-05,204.68,204.62,13.41184853]
[1738704975265,37.02099605,204.65,204.61,0.063]
[1738704975432,4.88573458,204.68,204.61,0.063]
[1738704975433,37.02099605,204.63,204.61,0.063]
[1738704975845,37.02099605,204.65,204.61,0.063]
[1738704976061,3.458e-05,204.68,204.64,37.02099605]
[1738704976235,3.458e-05,204.68,204.61,0.063]
[1738704976236,37.02099605,204.65,204.61,0.063]
[1738704977367,4.88563458,204.68,204.61,0.063]
[1738704977368,37.02099605,204.63,204.61,0.063]
[1738704977543,0.12549,204.62,204.61,0.063]
[1738704977859,5.01259,204.62,204.61,0.063]
[1738704978071,5.26357,204.62,204.61,0.063]
[1738704978239,5.26357,204.62,204.55,0.063]
[1738704978240,0.12549,204.58,204.55,0.063]
[1738704978558,37.02099605,204.56,204.55,0.063]
[1738704979650,37.02099605,204.58,204.55,0.063]
[1738704979958,37.02099605,204.6,204.55,0.063]
[1738704980161,37.02099605,204.64,204.56,0.37647]
[1738704980360,37.02099605,204.64,204.61,312.0]
[1738704980748,1.5755,204.67,204.61,312.0]
[1738704980749,37.02099605,204.62,204.61,312.0]
[1738704981069,37.02099605,204.66,204.62,13.41184853]
[1738704981255,37.02103063,204.68,204.6,13.41184853]
[1738704981642,37.02099605,204.66,204.6,13.41184853]
[1738704981960,37.02099605,204.61,204.55,0.063]
[1738704982169,37.02099605,204.58,204.55,0.063]
[1738704982576,37.02099605,204.6,204.55,0.063]
[1738704983444,37.02099605,204.62,204.55,0.063]
[1738704983969,37.02099605,204.6,204.55,0.063]
[1738704984188,37.02099605,204.6,204.58,312.0]
[1738704984354,37.02099605,204.6,204.55,0.063]
[1738704984682,37.02099605,204.58,204.55,0.063]
[1738704985858,37.02099605,204.6,204.55,0.063]
[1738704986059,37.02099605,204.58,204.55,0.063]
[1738704986448,0.03,204.65,204.55,0.063]
[1738704986449,57.02099605,204.56,204.55,0.063]
[1738704986649,37.02099605,204.58,204.55,0.063]
[1738704986873,37.02099605,204.62,204.55,0.063]
[1738704987196,37.02099605,204.6,204.55,0.063]
[1738704987481,37.02099605,204.57,204.55,0.063]
[1738704987979,0.03,204.65,204.57,13.41184853]
[1738704988155,0.09248133,204.61,204.6,37.27197605]
[1738704988358,0.09248133,204.61,204.6,14.14471123]
[1738704988551,0.09248133,204.61,204.55,0.063]
[1738704988883,37.02099605,204.57,204.55,0.063]
[1738704989083,37.02099605,204.59,204.55,0.063]
[1738704989269,37.02099605,204.57,204.55,0.063]
[1738704990382,37.02099605,204.57,204.56,312.0]
[1738704990551,37.02099605,204.57,204.55,0.063]
[1738704990977,37.11347738,204.61,204.55,0.063]
[1738704991483,37.02099605,204.59,204.55,0.063]
[1738704991846,41.90939605,204.57,204.55,0.063]
[1738704992269,37.11347738,204.61,204.55,0.063]
[1738704992482,0.09248133,204.61,204.55,13.47484853]
[1738704993483,0.09248133,204.61,204.57,13.41184853]
[1738704993664,0.09248133,204.61,204.6,312.0]
[1738704993870,37.11347738,204.61,204.6,312.0]
[1738704994183,4.8875,204.6,204.55,0.063]
[1738704994390,37.02099605,204.59,204.55,0.063]
[1738704994555,37.11347738,204.61,204.55,0.063]
[1738704994755,37.11347738,204.61,204.55,13.47484853]
[1738704995274,0.09248133,204.61,204.55,4.9517]
[1738704995563,0.09248133,204.61,204.6,50.68382458]
[1738704995889,0.09248133,204.61,204.6,51.54215101]
[1738704996182,37.02099605,204.75,204.65,1.0]
[1738704996366,37.02099605,204.79,204.7,37.02099605]
[1738704996687,37.02099605,204.81,204.73,13.41184853]
[1738704997058,1.6463,204.83,204.69,1.25098]
[1738704997059,6.5284,204.83,204.7,38.02099605]
[1738704997388,20.0,204.77,204.6,41.90849605]
[1738704997683,37.02099605,204.68,204.6,4.8875]
[1738704997883,37.02099605,204.7,204.61,0.73286708]
[1738704998184,37.02099605,204.66,204.6,4.8874]
[1738704998685,0.03,204.65,204.58,6.1579]
[1738704998987,37.02099605,204.6,204.55,0.063]
[1738704999192,37.02099605,204.58,204.55,0.063]
[1738704999486,37.02099605,204.56,204.55,0.063]
[1738705000086,41.90949605,204.56,204.55,0.063]
[1738705001892,41.90949605,204.56,204.51,0.063]
[1738705002078,74.0419921,204.52,204.51,0.063]
[1738705002591,74.0419921,204.52,204.47,0.063]
[1738705002592,20.0,204.49,204.36,37.75471163]
[1738705002778,37.02099605,204.37,204.34,0.063]
[1738705002973,37.02099605,204.38,204.34,0.063]
[1738705003663,37.02099605,204.42,204.34,0.063]
[1738705003869,37.02099605,204.42,204.34,0.31398]
[1738705004276,37.02099605,204.42,204.34,0.063]
[1738705004471,0.99994752,204.3,204.21,1.23746542]
[1738705004683,37.02099605,204.24,204.16,15.13716977]
[1738705004888,37.02099605,204.22,204.16,15.13716977]
[1738705005061,37.02099605,204.18,204.16,15.13716977]
[1738705006369,37.02099605,204.18,204.06,15.13716977]
[1738705006565,37.02099605,204.13,204.07,0.12549]
[1738705007293,41.91819605,204.2,204.07,312.0]
[1738705007294,37.02099605,204.16,204.07,312.0]
[1738705007494,37.02099605,204.14,204.08,13.91380853]
[1738705008092,0.09095677,204.08,204.06,15.13716977]
[1738705008603,0.09095677,204.08,204.07,14.6486095]
[1738705008961,0.09095677,204.08,204.07,13.66282853]
[1738705009161,0.09095677,204.08,204.07,14.91380853]
[1738705009480,0.09095677,204.08,204.07,13.91380853]
[1738705009798,0.09095677,204.08,204.07,13.41184853]
[1738705009963,0.09095677,204.08,204.06,15.13716977]
[1738705010173,37.02099605,204.07,204.06,15.13716977]
[1738705010669,37.02099605,204.07,204.06,15.20016977]
[1738705012093,37.02099605,204.07,204.06,0.063]
[1738705012307,4.9005,204.06,203.92,0.73509225]
[1738705012462,37.02099605,203.95,203.91,1.0]
[1738705012807,37.02099605,203.98,203.92,0.12549]
[1738705013300,37.02099605,203.96,203.92,0.12549]
[1738705013669,37.02099605,203.98,203.92,0.12549]
[1738705014273,12.2512,204.06,203.91,14.78831853]
[1738705014274,37.02099605,204.0,203.91,37.75634151]
[1738705014495,0.09095677,204.08,203.89,37.02099605]
[1738705014496,37.02099605,203.98,203.89,37.02099605]
[1738705014800,20.12549,204.04,203.97,312.0]
[1738705015099,20.12549,204.04,203.87,37.02099605]
[1738705015404,37.02099605,203.9,203.81,37.75649405]
[1738705015609,37.02099605,203.9,203.84,20.0]
[1738705015782,0.99994752,204.01,203.84,20.0]
[1738705015783,37.02099605,203.96,203.9,0.12549]
[1738705015975,37.02099605,203.98,203.91,0.25098]
[1738705016317,37.02099605,203.96,203.87,37.02099605]
[1738705016502,37.02099605,203.96,203.88,20.0]
[1738705016685,37.02099605,203.96,203.89,13.41184853]
[1738705017610,4.9016,204.02,203.94,0.25098]
[1738705017934,37.02099605,203.98,203.9,0.12549]
[1738705018225,37.02099605,203.98,203.97,312.0]
[1738705019538,37.02099605,203.98,203.87,41.92579605]
[1738705019539,0.12549,203.97,203.81,37.02099605]
[1738705019825,37.02099605,203.95,203.86,13.78831853]
[1738705020030,37.02099605,203.97,203.89,37.27197605]
[1738705020236,37.02099605,203.95,203.87,37.02099605]
[1738705020531,37.02099605,203.89,203.8,6.4332]
[1738705020698,42.6708,203.98,203.77,37.02099605]
[1738705020699,37.02099605,203.83,203.77,4.9073]
[1738705020900,37.02099605,203.85,203.77,4.9073]
[1738705021133,37.02099605,203.79,203.74,0.05]
[1738705021309,37.02099605,203.77,203.74,0.05]
[1738705021707,37.02099605,203.75,203.74,0.05]
[1738705022107,1.2182557,203.82,203.74,0.05]
[1738705022108,37.02099605,203.79,203.74,0.05]
[1738705022322,37.02099605,203.83,203.74,0.05]
[1738705022630,4.9058,203.84,203.74,0.05]
[1738705022631,37.02099605,203.77,203.74,0.05]
[1738705022828,37.02099605,203.83,203.75,13.53733853]
[1738705023144,37.02099605,203.85,203.78,0.25098]
[1738705023304,37.02099605,203.87,203.82,13.41184853]
[1738705023629,37.02099605,203.93,203.87,13.66282853]
[1738705023869,37.02099605,203.99,203.91,0.12549]
[1738705024010,37.02099605,203.99,203.91,0.73542005]
[1738705024217,37.02099605,203.99,203.91,37.02099605]
[1738705024432,37.02099605,204.01,203.91,37.02099605]
[1738705024639,37.02099605,204.01,203.94,13.41184853]
[1738705025004,37.02099605,204.03,203.94,13.41184853]
[1738705025220,0.09095677,204.08,204.0,0.25098]
[1738705025532,0.09095677,204.08,204.02,13.41184853]
[1738705025737,0.09095677,204.08,204.05,0.37647]
[1738705025939,0.09095677,204.08,204.07,50.68382458]
[1738705026114,0.09095677,204.08,204.02,0.73479571]
[1738705026320,37.02099605,204.03,203.94,37.02099605]
[1738705026615,37.02099605,204.04,203.94,37.02099605]
[1738705026822,37.02099605,204.06,203.98,37.02099605]
[1738705027036,4.99105677,204.08,204.05,312.0]
[1738705027242,37.02099605,204.06,203.94,37.02099605]
[1738705027416,37.02099605,204.04,203.94,37.02099605]
[1738705027617,37.02099605,204.02,203.92,37.02099605]
[1738705027842,37.02099605,203.97,203.88,37.75647964]
[1738705028032,1.22389985,204.02,203.82,37.02099605]
[1738705028033,37.02099605,203.92,203.82,37.02099605]
[1738705028228,37.02099605,203.92,203.84,37.02099605]
[1738705028453,0.10511798,203.95,203.86,37.02099605]
[1738705028749,0.10511798,203.95,203.8,37.02099605]
[1738705028750,37.02099605,203.9,203.82,37.02099605]
[1738705028917,37.02099605,203.94,203.84,37.02099605]
[1738705029321,37.02099605,203.94,203.85,13.91380853]
[1738705029547,0.10511798,203.95,203.89,37.02099605]
[1738705029938,0.10511798,203.95,203.84,5.64103698]
[1738705029939,37.02099605,203.92,203.84,5.64103698]
[1738705030128,37.02099605,203.94,203.91,312.0]
[1738705030745,0.10511798,203.95,203.89,13.41184853]
[1738705030949,0.10511798,203.95,203.9,0.12549]
[1738705031455,0.10511798,203.95,203.86,37.75637837]
[1738705031655,37.02099605,203.88,203.79,37.75658678]
[1738705031827,37.02099605,203.88,203.8,4.9067]
[1738705032022,0.10511798,203.95,203.89,0.25098]
[1738705032352,0.10511798,203.95,203.93,13.53733853]
[1738705032525,0.10511798,203.95,203.93,14.27261537]
[1738705032729,0.10511798,203.95,203.88,37.75628306]
[1738705032943,0.10511798,203.95,203.94,37.02099605]
[1738705033146,0.10511798,203.95,203.94,50.43284458]
[1738705033357,0.10511798,203.95,203.94,50.55833458]
[1738705033658,0.10511798,203.95,203.94,312.0]
[1738705034017,0.10511798,203.95,203.94,362.93480458]
[1738705034359,0.10511798,203.95,203.94,363.93480458]
[1738705034523,1.798e-05,203.95,203.94,364.93480458]
[1738705034723,2.958e-05,203.98,203.97,22.50196]
[1738705034951,2.958e-05,203.98,203.97,73.66969114]
[1738705035126,8.286e-05,203.99,203.98,13.91380853]
[1738705035328,8.539e-05,204.03,204.02,1.0]
[1738705035639,37.02099605,204.2,204.12,13.66282853]
[1738705035855,37.02099605,204.22,204.14,0.25098]
[1738705036028,37.02099605,204.22,204.15,13.41184853]
[1738705036392,0.03,204.23,204.13,37.02099605]
[1738705036393,0.03,204.23,204.22,13.53733853]
[1738705036520,0.03,204.23,204.22,13.41184853]
[1738705036726,0.03,204.23,204.19,0.73420451]
[1738705036955,0.03,204.23,204.17,0.73435138]
[1738705037116,0.03,204.23,204.18,0.12549]
[1738705037522,37.02099605,204.2,204.12,0.73437911]
[1738705037737,37.02099605,204.2,204.13,0.7345163]
[1738705037939,37.02099605,204.16,204.07,37.02099605]
[1738705038155,37.02099605,204.14,204.09,13.41184853]
[1738705038347,37.02099605,204.12,204.09,13.41184853]
[1738705038525,37.02099605,204.12,204.05,0.86018025]
[1738705038731,37.02099605,204.12,204.06,13.66282853]
[1738705038949,37.02099605,204.14,204.06,13.66282853]
[1738705039351,37.02099605,204.16,204.08,13.53733853]
[1738705039861,37.02099605,204.16,204.06,0.12549]
[1738705039862,37.02099605,204.12,204.03,37.02099605]
[1738705040185,37.02099605,204.1,204.03,13.53733853]
[1738705040355,37.02099605,204.18,204.09,37.14648605]
[1738705040542,37.02099605,204.18,204.11,13.41184853]
[1738705040739,37.02099605,204.14,204.06,0.73462765]
[1738705040957,37.02099605,204.12,204.06,20.0]
[1738705041245,37.02099605,204.1,204.01,37.02099605]
[1738705041466,37.02099605,204.1,204.02,0.73490366]
[1738705041640,37.02099605,204.1,204.03,13.41184853]
[1738705042333,37.02099605,204.08,204.03,13.41184853]
[1738705042541,37.02099605,204.08,204.0,0.7349239]
[1738705042764,37.02099605,204.08,204.01,13.41184853]
[1738705042963,37.02099605,204.06,204.0,13.53733853]
[1738705043347,37.02099605,204.14,204.05,37.02099605]
[1738705043556,41.91959605,204.14,204.05,37.02099605]
[1738705043772,37.02099605,204.14,204.06,0.86032367]
[1738705043941,37.02099605,204.14,204.13,312.0]
[1738705044275,41.94749605,204.23,204.13,312.0]
[1738705044441,41.94749605,204.23,204.12,37.02099605]
[1738705044644,41.94749605,204.23,204.13,0.12549]
[1738705044963,41.94749605,204.23,204.08,44.15992338]
[1738705044964,37.02099605,204.19,204.08,44.15992338]
[1738705045272,37.02099605,204.17,204.09,13.53733853]
[1738705045860,0.03,204.23,204.16,37.02099605]
[1738705046060,0.03,204.23,204.18,37.02099605]
[1738705046446,0.03,204.23,204.17,13.41184853]
[1738705046837,0.03,204.23,204.18,37.02099605]
[1738705047038,0.03,204.23,204.2,37.02099605]
[1738705047340,37.02099605,204.21,204.19,312.0]
[1738705048069,20.0,204.18,204.04,0.063]
[1738705048257,37.02099605,204.1,204.04,0.063]
[1738705048462,37.02099605,204.08,204.04,0.063]
[1738705048773,37.02099605,204.1,204.04,0.063]
[1738705048984,37.02099605,204.16,204.05,37.02099605]
[1738705049272,17.23532104,204.2,204.04,0.063]
[1738705049273,37.02099605,204.06,204.04,0.063]
[1738705050042,37.02099605,204.1,204.04,0.063]
[1738705050275,4.8973,204.19,204.09,37.02099605]
[1738705050572,37.11641709,204.2,204.11,37.02099605]
[1738705050772,0.09542104,204.2,204.13,37.02099605]
[1738705050944,0.09542104,204.2,204.19,312.0]
[1738705051271,37.11641709,204.2,204.19,312.0]
[1738705051643,37.11641709,204.2,204.08,37.02099605]
[1738705051954,37.02099605,204.18,204.09,13.41184853]
[1738705052282,37.02099605,204.12,204.04,0.063]
[1738705052457,37.02099605,204.16,204.07,37.02099605]
[1738705052643,0.09542104,204.2,204.14,37.02099605]
[1738705053272,0.09542104,204.2,204.08,37.02099605]
[1738705053273,37.02099605,204.16,204.08,37.02099605]
[1738705053573,0.09542104,204.2,204.12,37.02099605]
[1738705053742,37.11641709,204.2,204.09,37.02099605]
[1738705053947,37.02099605,204.18,204.09,37.02099605]
[1738705054245,37.02099605,204.14,204.05,42.65615904]
[1738705054577,37.02099605,204.14,204.05,37.02099605]
[1738705054766,37.02099605,204.18,204.12,312.0]
[1738705055173,37.02099605,204.16,204.08,37.02099605]
[1738705055376,37.02099605,204.12,204.04,0.063]
[1738705055555,37.02099605,204.1,204.04,0.063]
[1738705055763,37.02099605,204.12,204.04,0.063]
[1738705056055,37.11641709,204.2,204.11,37.02099605]
[1738705056459,37.02099605,204.14,204.04,0.063]
[1738705056753,37.02099605,204.14,204.04,4.9639]
[1738705056967,37.02099605,204.14,204.05,51.16770288]
[1738705057171,37.02099605,204.14,204.05,50.43284458]
[1738705057382,37.02099605,204.18,204.09,37.02099605]
[1738705057893,4.99252104,204.2,204.1,13.41184853]
[1738705058202,0.09542104,204.2,204.19,312.0]
[1738705058863,37.11641709,204.2,204.19,312.0]
[1738705059075,0.09542104,204.2,204.19,312.0]
[1738705059376,42.01351709,204.2,204.1,37.02099605]
[1738705059554,37.11641709,204.2,204.13,13.41184853]
[1738705059751,0.09542104,204.2,204.16,37.02099605]
[1738705060056,0.09542104,204.2,204.15,0.25098]
[1738705060057,0.09542104,204.2,204.19,13.41184853]
[1738705060255,0.09542104,204.2,204.17,4.8977]
[1738705060570,0.09542104,204.2,204.16,37.75547059]
[1738705060952,0.09542104,204.2,204.18,37.02099605]
[1738705061157,0.09542104,204.2,204.19,0.98544701]
[1738705061351,0.09542104,204.2,204.19,0.73446701]
[1738705061583,0.09542104,204.2,204.19,0.73444463]
[1738705061886,0.09542104,204.2,204.19,14.14629316]
[1738705062085,0.09542104,204.2,204.19,14.39727316]
[1738705062249,0.09542104,204.2,204.19,312.73444463]
[1738705062455,0.09542104,204.2,204.19,312.0]
[1738705063191,0.09542104,204.2,204.19,330.81110853]
[1738705063371,2.104e-05,204.2,204.19,367.83210458]
[1738705063565,2.104e-05,204.2,204.19,330.81110853]
[1738705063963,2.104e-05,204.2,204.19,330.43463853]
[1738705064256,2.104e-05,204.2,204.19,330.30914853]
[1738705064464,2.104e-05,204.2,204.19,325.41184853]
[1738705064671,2.104e-05,204.2,204.19,312.0]
[1738705065581,2.104e-05,204.2,204.19,325.41184853]
[1738705065765,2.104e-05,204.2,204.19,330.68561853]
[1738705066360,2.104e-05,204.2,204.19,330.81110853]
[1738705067185,0.03,204.23,204.19,316.8973]
[1738705067487,4.9264,204.23,204.17,37.02099605]
[1738705067659,0.03,204.23,204.21,37.02099605]
[1738705067865,0.03,204.23,204.22,13.41184853]
[1738705068281,0.12108113,204.23,204.22,13.41184853]
[1738705068489,0.12108113,204.23,204.21,37.75524719]
[1738705068782,0.12108113,204.23,204.19,0.12549]
[1738705068783,5.01748113,204.23,204.17,37.02099605]
[1738705069187,37.02099605,204.22,204.13,37.75527604]
[1738705069364,37.02099605,204.22,204.13,37.02099605]
[1738705069764,37.02099605,204.22,204.19,0.063]
[1738705069961,0.03,204.2,204.19,0.063]
[1738705070362,0.03,204.2,204.19,312.063]
[1738705070676,0.03,204.2,204.19,0.063]
[1738705071489,37.05099605,204.2,204.19,0.063]
[1738705072472,41.94809605,204.2,204.19,0.063]
[1738705072965,91.2118921,204.2,204.07,37.02099605]
[1738705073291,37.02099605,204.17,204.09,37.02099605]
[1738705073585,4.9271,204.2,204.11,37.02099605]
[1738705073773,4.9271,204.2,204.14,312.0]
[1738705074285,4.9271,204.2,204.11,37.02099605]
[1738705074788,37.02099605,204.17,204.09,37.02099605]
[1738705075001,37.02099605,204.17,204.07,37.02099605]
[1738705075167,37.02099605,204.17,204.04,7.23199375]
[1738705075168,37.02099605,204.11,204.04,0.063]
[1738705075368,37.02099605,204.09,204.04,0.063]
[1738705075769,37.02099605,204.11,204.04,0.063]
[1738705076160,37.02099605,204.13,204.04,0.063]
[1738705076373,37.02099605,204.17,204.09,37.02099605]
[1738705076698,4.8981,204.16,204.07,37.02099605]
[1738705076885,4.8978,204.18,204.09,37.02099605]
[1738705077191,4.8978,204.18,204.15,312.0]
[1738705078169,0.03,204.2,204.15,37.02099605]
[1738705078494,0.03,204.2,204.19,50.43284458]
[1738705078670,0.03,204.2,204.19,87.70482063]
[1738705078996,0.12108113,204.23,204.22,20.37647]
[1738705079285,0.12108113,204.23,204.22,58.13161008]
[1738705079666,0.12108113,204.23,204.22,71.66894861]
[1738705079866,8.113e-05,204.23,204.22,51.16698861]
[1738705080391,1.93e-05,204.24,204.23,13.91380853]
[1738705080598,1.93e-05,204.24,204.23,13.53733853]
[1738705081092,1.93e-05,204.24,204.17,37.02099605]
[1738705081293,1.93e-05,204.24,204.15,37.02099605]
[1738705081508,1.93e-05,204.24,204.21,37.02099605]
[1738705081810,1.93e-05,204.24,204.23,50.55833458]
[1738705082098,1.93e-05,204.24,204.23,50.43284458]